bitfinex/quotes_ETHUSD_20240731
["timestamp","ask_amount","ask_price","bid_price","bid_amount"]
[1722458740484,20.36187439,3236.5,3235.9,0.55]
[1722458740806,20.36187439,3236.5,3236.0,0.37022247]
[1722458740807,0.63415133,3236.3,3236.0,0.37022247]
[1722458740971,0.63415133,3236.3,3235.7,0.37024164]
[1722458740972,0.04866151,3236.2,3235.7,3.0]
[1722458741197,0.04866151,3236.2,3235.4,1.5]
[1722458741399,0.68281284,3236.2,3235.5,0.55]
[1722458741990,0.04866151,3236.2,3235.5,0.55]
[1722458742183,0.63404641,3236.2,3235.5,0.55]
[1722458742397,0.04866151,3236.1,3235.5,0.55]
[1722458742739,0.63404641,3236.0,3234.5,3.7591]
[1722458743036,0.63404641,3235.6,3234.5,3.7591]
[1722458743325,0.63404641,3235.4,3234.5,3.91438549]
[1722458743836,0.63404641,3235.4,3234.5,7.00599549]
[1722458744138,0.68270792,3235.5,3234.5,7.00599549]
[1722458744349,0.68270792,3235.5,3234.6,3.70059955]
[1722458744549,0.63401142,3235.4,3234.6,3.70059955]
[1722458744707,0.63401142,3235.5,3234.9,3.09128]
[1722458744911,0.63401142,3235.5,3235.0,3.309128]
[1722458745212,0.95101713,3235.7,3235.1,3.64102]
[1722458745213,0.63401142,3235.7,3235.1,3.64102]
[1722458745429,0.63401142,3235.7,3235.2,3.06181238]
[1722458745720,8.10401142,3235.9,3235.3,0.6118096]
[1722458745924,8.10401142,3235.9,3235.4,3.09079]
[1722458746101,7.47,3235.9,3235.5,3.92025996]
[1722458746507,7.47,3235.9,3235.6,0.06180604]
[1722458746827,8.10401142,3235.9,3235.7,0.55]
[1722458747123,8.10401142,3235.9,3235.3,3.0]
[1722458747124,0.63401142,3235.8,3235.3,3.0]
[1722458747326,0.63401142,3235.8,3235.4,0.55]
[1722458747512,8.10401142,3235.9,3235.4,0.55]
[1722458747824,8.10401142,3235.9,3235.1,0.55]
[1722458748193,0.68267293,3235.8,3235.1,0.55]
[1722458748527,0.63401142,3235.7,3235.1,0.55]
[1722458748738,0.63401142,3235.7,3234.6,3.79211955]
[1722458748739,0.63401142,3235.5,3234.6,3.79211955]
[1722458749048,0.63401142,3235.5,3234.7,0.90660885]
[1722458749049,0.68267293,3235.5,3234.7,0.90660885]
[1722458749202,0.63401142,3235.4,3234.7,0.90660885]
[1722458749401,0.68267293,3235.5,3234.7,0.90660885]
[1722458750036,0.63401142,3235.3,3234.7,3.0]
[1722458750233,0.63401142,3235.2,3234.6,3.70059955]
[1722458750435,2.3897,3236.1,3234.7,3.15328244]
[1722458750639,0.63505805,3235.3,3234.8,3.0]
[1722458750942,0.95258708,3235.4,3234.6,3.70059955]
[1722458750943,0.63505805,3235.2,3234.6,3.70059955]
[1722458751166,0.63505805,3235.2,3234.7,0.61128761]
[1722458751449,0.63505805,3235.2,3234.2,2.4421]
[1722458751450,0.68371956,3235.1,3233.7,5.025]
[1722458751616,0.63495355,3234.6,3233.7,5.025]
[1722458751815,0.63495355,3234.6,3233.7,3.525]
[1722458752032,0.63495355,3234.6,3233.6,3.09245]
[1722458752216,0.63495355,3234.5,3233.7,3.401665]
[1722458752705,0.63495355,3234.5,3233.8,3.0]
[1722458753042,0.68361506,3234.7,3233.8,3.0]
[1722458753344,3.09186,3234.3,3233.4,0.15177216]
[1722458753647,3.09186,3234.3,3232.6,3.12043163]
[1722458753648,0.63462518,3233.9,3232.6,0.02699163]
[1722458753853,0.63462518,3233.4,3232.6,0.02699163]
[1722458754161,0.63462518,3233.0,3232.6,0.02699163]
[1722458754302,0.04866151,3232.9,3232.6,0.02699163]
[1722458754499,0.04866151,3233.2,3232.6,0.02699163]
[1722458754913,0.68328669,3233.4,3232.6,0.02699163]
[1722458755122,0.04866151,3233.4,3232.6,0.34523859]
[1722458755341,0.63462518,3233.5,3232.7,3.09338]
[1722458755541,0.04866151,3233.4,3232.7,3.09338]
[1722458756045,0.04866151,3233.5,3232.8,6.1550923]
[1722458756266,0.04866151,3233.5,3232.8,3.6118623]
[1722458756553,0.04866151,3233.5,3232.9,0.67051823]
[1722458756761,0.04866151,3233.5,3232.9,3.76367823]
[1722458756916,1.58348854,3234.4,3232.9,3.76367823]
[1722458756917,7.47,3234.6,3233.2,3.09282]
[1722458757112,2.4778,3234.7,3233.0,3.61185845]
[1722458757113,0.63323176,3234.2,3233.3,3.70460269]
[1722458757346,0.63323176,3234.3,3233.4,3.0]
[1722458757562,0.7915397,3234.3,3233.3,3.61185269]
[1722458757849,0.63323176,3234.1,3233.4,3.0]
[1722458758170,0.04866151,3234.0,3233.3,0.61184926]
[1722458758378,0.04866151,3234.0,3233.1,6.09296]
[1722458758379,0.04866151,3234.0,3233.1,3.06184929]
[1722458758691,0.04866151,3234.0,3233.2,0.55]
[1722458759034,0.63323176,3234.1,3233.0,3.0]
[1722458759265,0.04866151,3234.0,3233.0,3.0]
[1722458759682,0.63298093,3234.1,3233.0,3.06185692]
[1722458759833,0.79128887,3234.3,3233.2,3.09289]
[1722458760145,0.79128887,3234.3,3233.3,3.0]
[1722458760341,0.15830794,3234.3,3233.3,3.0]
[1722458760667,0.63298093,3233.9,3233.3,3.0]
[1722458760868,0.04866151,3233.8,3233.1,3.0]
[1722458761168,20.4093655,3233.8,3232.6,3.27325877]
[1722458761330,0.04866151,3233.7,3232.7,6.09335]
[1722458761641,0.04866151,3233.7,3232.7,3.0]
[1722458762047,0.04866151,3233.7,3232.8,3.64328]
[1722458762234,0.04866151,3233.7,3232.9,3.0]
[1722458762583,0.04866151,3233.7,3233.0,3.64307]
[1722458762733,0.04866151,3233.7,3233.0,0.55]
[1722458763136,2.02629997,3233.7,3232.9,3.0]
[1722458763437,2.02629997,3233.7,3232.6,3.17983877]
[1722458763645,2.02629997,3233.7,3232.6,3.02699163]
[1722458763980,2.454,3233.6,3232.6,3.02699163]
[1722458764182,0.04866151,3233.5,3232.6,0.02699163]
[1722458764382,0.25026615,3233.4,3232.6,3.02699163]
[1722458764693,0.04866151,3233.3,3232.6,0.02699163]
[1722458765015,0.04866151,3233.3,3232.7,3.0]
[1722458765295,0.04866151,3233.3,3232.6,0.02699163]
[1722458767989,0.25026615,3233.4,3232.6,0.02699163]
[1722458768399,19.72772306,3233.5,3232.6,0.44655785]
[1722458768601,19.72772306,3233.5,3232.7,0.55]
[1722458768814,19.72772306,3233.5,3232.6,3.02699163]
[1722458768815,0.04866151,3233.4,3232.6,3.02699163]
[1722458768976,19.72772306,3233.5,3232.7,3.09338]
[1722458769179,0.04866151,3233.4,3232.8,3.0]
[1722458769475,0.04866151,3233.4,3232.8,3.61203716]
[1722458769678,0.04866151,3233.4,3232.6,3.02699163]
[1722458769916,0.04866151,3233.4,3232.7,3.64333]
[1722458770209,0.04866151,3233.4,3232.8,3.0]
[1722458770621,2.38626151,3233.4,3232.6,0.02699163]
[1722458771115,0.04866151,3233.4,3232.6,0.02699163]
[1722458777712,3.14147151,3233.4,3232.6,0.02699163]
[1722458778015,2.3465,3233.3,3232.6,0.02699163]
[1722458778217,0.04866151,3233.2,3232.6,0.02699163]
[1722458782005,1.07107121,3233.1,3232.6,0.02699163]
[1722458782174,0.04866151,3233.0,3232.6,0.02699163]
[1722458783084,0.04866151,3233.2,3232.6,0.02699163]
[1722458783912,1.07103364,3233.1,3232.6,0.02699163]
[1722458784118,0.04866151,3233.0,3232.6,0.02699163]
[1722458785210,2.3465,3233.3,3232.6,0.02699163]
[1722458785211,0.04866151,3233.2,3232.6,0.02699163]
[1722458785544,1.07111135,3233.1,3232.6,0.02699163]
[1722458785753,1.11977286,3233.0,3232.6,0.02699163]
[1722458786073,0.04866151,3233.0,3232.6,0.02699163]
[1722458787514,1.07112506,3232.9,3232.6,0.02699163]
[1722458787718,0.04866151,3232.8,3232.6,0.02699163]
[1722458788674,0.04866151,3233.1,3232.6,0.02699163]
[1722458788812,1.07106821,3233.0,3232.6,0.02699163]
[1722458789014,1.11972972,3232.9,3232.6,0.02699163]
[1722458789212,0.04866151,3232.9,3232.6,0.02699163]
[1722458789508,1.07112772,3232.8,3232.6,0.02699163]
[1722458789727,1.11979949,3232.7,3232.6,0.02699163]
[1722458789964,0.04866151,3233.0,3232.6,0.02699163]
[1722458790162,1.07114086,3232.9,3232.6,0.02699163]
[1722458790377,0.04866151,3232.8,3232.6,0.02699163]
[1722458791418,3.69620035,3233.1,3232.6,0.02699163]
[1722458791419,0.04866151,3233.0,3232.6,0.02699163]
[1722458791667,8.47946,3232.7,3232.6,0.02699163]
[1722458791815,13.27407097,3232.7,3232.6,0.02699163]
[1722458792018,13.58913698,3232.7,3232.6,0.02699163]
[1722458792243,16.58913698,3232.7,3232.6,0.02699163]
[1722458792584,16.4316165,3232.7,3232.6,0.02699163]
[1722458792912,14.28693226,3232.7,3232.6,0.02699163]
[1722458793213,8.04554596,3232.7,3232.6,0.02699163]
[1722458793958,11.77131403,3232.7,3232.6,0.02699163]
[1722458794258,12.08761226,3232.7,3232.6,0.02699163]
[1722458794459,13.66256609,3232.7,3232.6,0.02699163]
[1722458794760,13.9787607,3232.7,3232.6,0.02699163]
[1722458795060,8.99528157,3232.7,3232.6,0.02699163]
[1722458795432,26.70184399,3232.7,3232.6,0.02699163]
[1722458795637,30.61540594,3232.7,3232.6,0.02699163]
[1722458795962,37.02557663,3232.7,3232.6,0.02699163]
[1722458796392,35.4414702,3232.7,3232.6,0.02699163]
[1722458796566,6.18734,3232.4,3232.3,0.00775323]
[1722458796719,26.01156127,3232.4,3232.3,0.00775323]
[1722458797156,23.8689788,3232.4,3232.3,0.00775323]
[1722458797366,19.72772306,3232.4,3232.3,0.00775323]
[1722458800715,0.63501106,3232.6,3232.3,0.00775323]
[1722458800966,20.36273412,3233.1,3232.4,2.4954]
[1722458801119,0.63501106,3233.1,3232.6,2.65]
[1722458801319,0.63501106,3233.2,3233.0,2.65]
[1722458801524,7.47,3233.8,3233.1,3.06185406]
[1722458801525,0.63501106,3233.5,3233.1,3.06185406]
[1722458801723,7.47,3233.8,3233.1,3.61185406]
[1722458801962,19.72772306,3234.0,3233.2,2.393]
[1722458802126,19.72772306,3234.0,3233.2,2.45485111]
[1722458802327,0.63501106,3234.1,3233.3,0.66233622]
[1722458802527,8.10501106,3234.3,3233.5,3.09259]
[1722458802842,8.10501106,3234.3,3233.7,2.393]
[1722458802843,7.47,3234.3,3233.7,2.393]
[1722458803041,7.47,3234.3,3233.7,2.45484222]
[1722458803250,7.47,3234.3,3233.7,5.54727146]
[1722458803559,0.63501106,3234.6,3233.8,3.56656824]
[1722458803885,0.63501106,3234.6,3233.9,3.0]
[1722458803886,0.68367257,3234.6,3233.9,3.0]
[1722458804094,0.68367257,3234.6,3233.8,0.85472715]
[1722458804095,0.63589629,3234.4,3233.8,3.85472715]
[1722458804309,0.63589629,3234.4,3233.8,3.91656832]
[1722458804615,0.63589629,3234.8,3234.0,3.09206]
[1722458804778,0.63589629,3234.9,3234.1,7.06804697]
[1722458804958,0.04866151,3234.9,3234.1,3.42603697]
[1722458805313,0.04866151,3234.9,3234.2,0.55]
[1722458805770,0.04866151,3234.9,3234.2,0.61183096]
[1722458805975,0.6845578,3234.9,3234.1,0.364206]
[1722458806289,0.63589629,3234.7,3233.9,3.0]
[1722458806495,0.63589629,3234.7,3233.8,0.85472715]
[1722458806496,0.04866151,3234.6,3233.8,3.85472715]
[1722458806691,0.63589629,3234.5,3233.3,0.60048511]
[1722458806854,0.6845578,3234.4,3233.3,3.09279]
[1722458807200,0.04866151,3234.5,3233.8,2.65]
[1722458807357,0.63589629,3235.0,3233.9,2.55013452]
[1722458807552,0.04866151,3235.0,3234.1,3.09197]
[1722458807785,0.63589629,3235.2,3234.2,2.71183114]
[1722458807987,0.63589629,3235.3,3234.3,6.73404852]
[1722458808195,0.63589629,3235.3,3234.5,2.4918]
[1722458808507,1.27179259,3235.6,3234.5,2.4918]
[1722458808508,0.63589629,3235.6,3234.8,3.09137]
[1722458808798,0.04866151,3235.7,3234.9,3.0]
[1722458808974,0.04866151,3235.7,3234.9,0.3]
[1722458809421,0.63589629,3236.0,3235.0,0.06181756]
[1722458809732,0.63589629,3236.0,3235.0,3.0]
[1722458809733,0.04866151,3235.9,3235.0,3.0]
[1722458810009,0.04866151,3235.9,3234.8,1.5]
[1722458810010,3.09052,3235.7,3234.8,3.0]
[1722458810157,3.09052,3235.7,3234.5,2.4918]
[1722458810158,3.13935151,3235.6,3234.5,2.4918]
[1722458810352,0.6845578,3235.6,3234.5,2.4918]
[1722458810599,0.63589629,3235.5,3234.3,3.0]
[1722458810764,20.41228086,3235.4,3234.0,8.54218]
[1722458810972,19.77638457,3235.4,3234.1,4.11130032]
[1722458811215,19.77638457,3235.4,3234.2,3.0]
[1722458812224,19.77638457,3235.4,3234.0,2.4501]
[1722458812225,0.63589629,3235.2,3234.0,2.4501]
[1722458812359,0.04866151,3235.1,3234.0,2.4501]
[1722458813101,0.63589629,3235.2,3234.0,2.4501]
[1722458813102,3.09157,3234.6,3234.0,2.4501]
[1722458813271,0.35781851,3234.5,3233.3,2.4501]
[1722458813609,22.81954306,3234.4,3233.3,2.4501]
[1722458813808,0.04866151,3234.3,3233.3,2.4501]
[1722458814159,0.04866151,3234.3,3233.4,0.06184832]
[1722458814368,19.72772306,3234.4,3233.3,5.60474772]
[1722458814563,0.04866151,3234.3,3233.3,2.51194772]
[1722458814804,0.04866151,3234.3,3233.3,2.4501]
[1722458815270,3.14052151,3234.3,3233.3,2.4501]
[1722458815449,0.04866151,3234.2,3233.3,2.4501]
[1722458816630,3.14063151,3234.2,3233.3,2.4501]
[1722458817425,0.31406315,3234.1,3233.3,2.4501]
[1722458817741,0.04866151,3234.0,3233.3,2.4501]
[1722458817894,19.72772306,3233.9,3233.3,2.4501]
[1722458818084,0.04866151,3233.8,3233.3,2.4501]
[1722458818524,3.09253,3233.6,3232.8,2.44]
[1722458818813,3.09253,3233.6,3232.3,0.00775323]
[1722458818814,3.09277,3233.4,3232.3,2.44775323]
[1722458819039,19.77638457,3233.3,3232.3,2.44775323]
[1722458819178,19.77638457,3233.3,3232.4,3.15553872]
[1722458819377,19.77638457,3233.3,3232.4,0.06186872]
[1722458819620,0.04866151,3233.2,3232.3,2.44775323]
[1722458820679,19.72772306,3233.3,3232.5,3.09357]
[1722458820905,19.72772306,3233.3,3232.6,3.09348]
[1722458821115,19.72772306,3233.3,3232.4,3.09366]
[1722458821116,19.72772306,3233.3,3232.8,2.44]
[1722458821418,19.72772306,3233.3,3232.9,3.15498679]
[1722458821603,19.72772306,3233.3,3233.0,3.0]
[1722458821917,22.81997306,3233.9,3232.8,2.44]
[1722458822117,1.73440083,3233.8,3232.8,2.44]
[1722458822424,3.09252,3233.6,3232.8,2.44]
[1722458822591,0.04866151,3233.5,3232.8,2.44]
[1722458822822,4.77812932,3233.8,3232.8,2.44]
[1722458822823,1.68573932,3233.8,3232.8,2.44]
[1722458823005,0.04866151,3233.7,3232.9,0.06185799]
[1722458823207,19.72772306,3233.9,3232.9,0.06185799]
[1722458823610,19.72772306,3233.9,3232.9,3.06185799]
[1722458823808,19.72772306,3233.9,3233.1,3.093]
[1722458824010,19.72772306,3233.9,3233.3,3.09274]
[1722458824326,19.72772306,3233.9,3233.4,3.9130187]
[1722458824633,19.72772306,3233.9,3233.2,5.9756]
[1722458825120,19.72772306,3233.9,3233.3,0.06184756]
[1722458825334,7.47,3234.6,3233.4,4.082]
[1722458825633,20.36096384,3234.8,3233.8,2.4256]
[1722458825634,19.72772306,3234.8,3233.8,2.4256]
[1722458825933,0.04866151,3234.6,3233.8,2.4256]
[1722458826245,0.04866151,3234.6,3233.5,3.0]
[1722458826246,2.02629997,3234.6,3233.5,3.0]
[1722458826387,2.02629997,3234.6,3233.3,2.4723]
[1722458826617,5.11786997,3234.6,3233.3,2.4723]
[1722458826805,5.11786997,3234.6,3233.3,5.4723]
[1722458827441,2.02629997,3234.6,3233.3,5.4723]
[1722458827643,0.20263,3234.5,3233.3,6.34452596]
[1722458827844,0.04866151,3234.4,3233.4,0.06184881]
[1722458828044,0.04866151,3234.7,3233.6,3.09252]
[1722458828208,19.72772306,3234.8,3233.8,2.4185]
[1722458828425,19.72772306,3234.8,3233.9,3.15399453]
[1722458828666,1.26648156,3235.7,3234.0,3.64211]
[1722458828667,27.19772306,3235.3,3234.0,3.64211]
[1722458828853,19.72772306,3235.2,3234.1,3.43222548]
[1722458829174,19.72772306,3235.2,3234.2,0.55]
[1722458829469,19.72772306,3235.2,3234.3,0.06183099]
[1722458829681,19.72772306,3235.2,3234.2,3.64194]
[1722458829682,19.72772306,3235.2,3234.2,0.61183099]
[1722458829813,0.04866151,3235.1,3234.1,3.0]
[1722458830023,1.97763846,3235.0,3233.8,2.4185]
[1722458830217,0.04866151,3234.9,3233.8,5.57267115]
[1722458830544,0.04866151,3234.9,3233.9,3.0]
[1722458830717,0.04866151,3234.9,3234.0,3.15390406]
[1722458830922,0.04866151,3234.9,3234.1,3.0]
[1722458831123,0.04866151,3234.9,3234.1,3.355]
[1722458831323,0.04866151,3235.1,3234.2,3.15377217]
[1722458831547,19.72772306,3235.2,3234.4,2.3985]
[1722458831854,19.72772306,3235.2,3234.5,3.15347806]
[1722458832058,19.72772306,3235.2,3234.6,3.0]
[1722458832359,19.72772306,3235.2,3234.6,1.39603281]
[1722458832589,19.72772306,3235.2,3234.6,4.54942571]
[1722458832859,0.63324078,3236.2,3234.6,4.54942571]
[1722458832860,7.47,3236.0,3235.3,2.3985]
[1722458833067,1.26648156,3236.8,3235.3,2.3985]
[1722458833068,19.72772306,3236.7,3235.4,3.64073]
[1722458833233,0.04866151,3236.6,3235.6,3.0906]
[1722458833429,0.04866151,3236.6,3235.4,7.17273]
[1722458833430,0.04866151,3236.6,3235.7,0.61180225]
[1722458833665,0.04866151,3236.6,3235.7,0.55]
[1722458833823,0.04866151,3236.6,3235.6,0.55]
[1722458834019,0.04866151,3236.6,3235.5,3.0]
[1722458834236,25.86528034,3236.5,3235.3,2.3985]
[1722458834574,3.13852151,3236.4,3235.3,2.3985]
[1722458834760,24.79517152,3236.5,3235.3,2.3985]
[1722458834961,3.13851151,3236.4,3235.3,2.3985]
[1722458835164,3.09009,3236.2,3235.3,2.3985]
[1722458835385,3.47013252,3236.1,3235.3,2.3985]
[1722458835586,0.37998252,3236.1,3235.3,2.3985]
[1722458835791,3.13885151,3236.1,3235.3,2.3985]
[1722458835951,0.04866151,3236.1,3234.8,2.46031973]
[1722458836282,3.72326605,3236.4,3235.8,3.532]
[1722458836283,0.63337605,3236.4,3235.8,3.532]
[1722458836467,0.63337605,3236.4,3235.9,2.3985]
[1722458836779,0.63337605,3236.3,3235.9,5.55061672]
[1722458836938,7.47,3237.4,3236.1,1.5]
[1722458837139,7.47,3237.4,3236.2,4.14378832]
[1722458837343,7.47,3237.4,3236.4,2.3985]
[1722458837565,0.04866151,3237.3,3236.5,0.61178477]
[1722458837771,0.04866151,3237.3,3236.5,3.55]
[1722458838076,7.47,3237.4,3236.6,0.06178477]
[1722458838279,7.47,3237.4,3236.5,4.14485]
[1722458838680,0.04866151,3237.3,3236.5,4.14485]
[1722458838853,0.04866151,3237.3,3236.5,3.55]
[1722458839343,0.04866151,3237.3,3236.5,3.0]
[1722458839543,0.04866151,3237.3,3236.4,2.3985]
[1722458839768,3.13771151,3237.3,3236.4,2.3985]
[1722458839975,0.04866151,3237.2,3236.4,2.3985]
[1722458840175,0.04866151,3237.2,3236.5,0.23985]
[1722458840861,0.04866151,3237.2,3236.5,3.23985]
[1722458841038,7.47,3237.4,3236.5,3.30163874]
[1722458841242,7.47,3237.4,3236.5,3.23985]
[1722458841587,7.47,3237.4,3236.6,0.61178477]
[1722458841805,7.47,3237.4,3236.7,0.69413648]
[1722458842029,7.47,3237.4,3236.8,0.06178311]
[1722458842172,19.72772306,3237.5,3236.8,3.55]
[1722458842367,0.04866151,3237.4,3236.8,3.0]
[1722458842673,0.04866151,3237.4,3236.4,2.3985]
[1722458842873,5.06668846,3237.3,3236.4,2.3985]
[1722458843211,5.06668846,3237.3,3235.9,2.4734]
[1722458843212,3.13776151,3237.2,3235.9,2.4734]
[1722458843367,19.72772306,3237.1,3236.0,3.09017]
[1722458843703,19.72772306,3237.1,3235.9,3.9734]
[1722458843704,19.72772306,3237.1,3236.1,3.15191161]
[1722458843903,19.72772306,3237.1,3235.9,7.06367]
[1722458844107,0.37998252,3237.0,3236.0,1.059567]
[1722458844316,0.37998252,3237.0,3236.0,3.0]
[1722458844484,3.08962,3236.7,3235.4,5.8112]
[1722458844685,3.08978,3236.5,3235.4,2.2792]
[1722458844890,0.04866151,3236.4,3235.4,2.2792]
[1722458845407,0.04866151,3236.4,3235.5,0.0618077]
[1722458845720,2.02629997,3236.4,3235.4,2.2792]
[1722458846894,2.02629997,3236.4,3235.5,0.0618077]
[1722458847171,19.72772306,3236.5,3235.5,0.0618077]
[1722458847413,19.72772306,3236.5,3235.6,0.55]
[1722458848382,0.04866151,3236.4,3235.6,0.55]
[1722458848805,0.04866151,3236.4,3235.5,3.0]
[1722458849171,19.72772306,3236.3,3235.0,3.532]
[1722458849307,2.02629997,3236.2,3235.0,3.532]
[1722458849510,2.02629997,3236.2,3235.1,4.65289322]
[1722458849681,2.02629997,3236.2,3235.2,3.09099]
[1722458849881,2.02629997,3236.2,3235.3,0.06180903]
[1722458850782,2.02629997,3236.2,3235.2,3.0]
[1722458850981,2.02629997,3236.2,3235.1,1.5]
[1722458850982,19.72772306,3236.3,3235.3,0.55]
[1722458851189,19.72772306,3236.3,3235.4,3.532]
[1722458851509,19.72772306,3236.3,3235.6,2.4689]
[1722458851675,19.72772306,3236.3,3235.7,0.06180146]
[1722458852136,19.72772306,3236.3,3235.7,3.06180146]
[1722458852338,19.72772306,3236.3,3235.8,0.61487161]
[1722458852682,19.72772306,3236.3,3235.8,0.55307015]
[1722458852987,0.04866151,3236.2,3235.2,2.4038]
[1722458853425,3.13870151,3236.2,3235.2,2.4038]
[1722458853605,3.09015,3236.1,3235.2,2.4038]
[1722458853783,0.04866151,3236.0,3235.2,2.4038]
[1722458854555,3.09039,3235.9,3234.7,2.4909]
[1722458854737,0.36256666,3235.8,3234.7,2.4909]
[1722458854937,0.04866151,3235.7,3234.7,2.4909]
[1722458856126,0.04866151,3235.7,3234.7,5.4909]
[1722458856822,0.04866151,3235.7,3234.8,0.55]
[1722458857015,0.04866151,3236.1,3234.8,3.61182033]
[1722458857233,3.13881151,3236.1,3234.8,4.89089193]
[1722458857456,3.09048,3235.8,3234.8,4.8290716]
[1722458857645,3.13919151,3235.7,3234.8,3.55]
[1722458857960,3.09062,3235.6,3234.8,3.0]
[1722458858123,0.04866151,3235.5,3234.7,5.4909]
[1722458858853,0.04866151,3235.5,3234.6,0.1559957]
[1722458859055,0.04866151,3235.5,3234.2,5.9161]
[1722458859242,0.36259366,3235.5,3234.3,5.528114]
[1722458859451,0.04866151,3235.4,3234.4,0.0618245]
[1722458860356,0.04866151,3235.7,3234.5,0.55]
[1722458860519,3.09067,3235.6,3234.5,0.55]
[1722458860858,3.13938151,3235.5,3234.5,0.55]
[1722458861358,19.72772306,3235.8,3234.9,3.09128]
[1722458861515,19.72772306,3235.8,3235.3,3.09089]
[1722458861738,19.72772306,3236.8,3235.5,2.3017]
[1722458861933,1.11857905,3236.7,3235.6,0.61180209]
[1722458862234,3.13823151,3236.7,3235.6,3.61180209]
[1722458862442,19.72772306,3236.8,3235.6,3.61180209]
[1722458862781,1.11862025,3236.7,3235.6,3.0]
[1722458862937,1.06995874,3236.6,3235.5,2.3017]
[1722458863138,19.72772306,3236.8,3235.6,0.55]
[1722458863379,19.72772306,3236.8,3235.7,0.594234]
[1722458863580,19.72772306,3236.8,3235.8,0.06180115]
[1722458863882,19.72772306,3236.8,3235.8,3.06180115]
[1722458864192,19.72772306,3236.8,3235.9,0.55]
[1722458864351,19.72772306,3236.8,3236.0,0.06179752]
[1722458864548,19.72772306,3236.8,3236.1,0.37020475]
[1722458864937,19.72772306,3236.8,3236.1,3.52213205]
[1722458865138,19.72772306,3237.4,3236.3,2.4741]
[1722458865338,19.72772306,3237.4,3236.3,5.535891]
[1722458866539,19.72772306,3237.4,3236.3,5.4741]
[1722458866540,3.13771151,3237.3,3236.3,5.4741]
[1722458866742,19.72772306,3237.4,3236.4,3.0]
[1722458867289,19.72772306,3237.4,3236.3,2.4741]
[1722458867290,19.72772306,3237.4,3236.3,5.53589097]
[1722458869005,19.72772306,3237.4,3236.3,8.62577097]
[1722458869140,19.72772306,3237.4,3236.4,2.05]
[1722458869340,19.72772306,3237.4,3236.5,0.06178525]
[1722458869540,19.72772306,3237.4,3236.6,1.06117852]
[1722458869736,19.72772306,3237.4,3236.6,4.06117852]
[1722458869941,7.47,3237.5,3236.6,4.12296375]
[1722458870190,7.47,3237.5,3236.6,1.12296375]
[1722458871968,7.47,3237.5,3236.6,4.21255375]
[1722458872151,7.47,3237.5,3236.7,4.03022337]
[1722458872356,7.47,3237.5,3236.7,4.09200763]
[1722458872958,7.47,3237.5,3236.7,0.06178426]
[1722458873678,7.47,3237.5,3236.7,6.15128429]
[1722458874024,7.47,3237.5,3236.9,2.4832]
[1722458874238,7.47,3237.5,3237.0,0.06177878]
[1722458874512,19.72772306,3237.8,3237.0,3.06177878]
[1722458874693,19.72772306,3238.1,3237.2,3.08903]
[1722458874895,19.72772306,3238.1,3237.3,3.06177191]
[1722458875696,19.72772306,3238.1,3237.3,6.15074191]
[1722458876014,19.72772306,3238.1,3237.4,3.08883]
[1722458876214,19.72772306,3238.1,3237.5,9.20225886]
[1722458876371,7.47,3238.9,3237.7,4.58859]
[1722458876573,0.04866151,3238.8,3237.8,3.06176333]
[1722458876824,0.04866151,3238.8,3238.0,2.642]
[1722458876987,0.04866151,3239.0,3238.0,2.642]
[1722458877190,0.04866151,3239.0,3238.1,0.61175436]
[1722458877417,0.04866151,3239.0,3238.1,6.69996436]
[1722458877789,19.72772306,3239.3,3238.1,6.69996436]
[1722458877989,19.72772306,3239.3,3238.1,8.19996436]
[1722458878194,19.72772306,3239.3,3238.3,3.08803]
[1722458878392,19.72772306,3239.3,3238.4,3.0]
[1722458878593,7.47,3239.4,3238.4,3.0]
[1722458878889,7.47,3239.4,3238.1,8.22637]
[1722458878890,0.04866151,3239.3,3238.2,3.06175283]
[1722458879110,0.04866151,3239.3,3238.3,0.55]
[1722458879352,0.04866151,3239.3,3238.3,3.61175283]
[1722458879610,0.04866151,3239.3,3238.4,0.66998728]
[1722458880285,0.04866151,3239.3,3238.3,3.55]
[1722458880482,7.47,3239.4,3238.1,0.06175283]
[1722458880689,7.47,3239.4,3238.2,0.55]
[1722458880893,7.47,3239.4,3238.3,0.06175371]
[1722458881103,7.47,3239.4,3238.4,4.14911537]
[1722458881316,7.47,3239.4,3238.5,3.14958161]
[1722458881523,7.47,3239.4,3238.6,5.95798]
[1722458881693,7.47,3239.4,3238.7,3.0]
[1722458882186,7.47,3239.4,3238.7,3.06174764]
[1722458882382,19.72772306,3239.6,3238.8,4.05123948]
[1722458882627,19.72772306,3239.6,3238.9,3.55]
[1722458882827,19.72772306,3239.6,3239.0,0.06173864]
[1722458883743,19.72772306,3239.6,3238.9,3.55]
[1722458884293,7.47,3239.9,3238.6,2.3203]
[1722458884294,19.77638457,3239.5,3238.6,2.3203]
[1722458884611,3.08709,3239.3,3238.6,2.3203]
[1722458884797,3.08709,3239.3,3237.7,5.02]
[1722458884798,0.04866151,3239.2,3237.9,2.2514]
[1722458884987,19.72772306,3239.5,3238.0,0.06175466]
[1722458885191,19.72772306,3239.5,3238.1,3.08822]
[1722458885432,21.28968253,3239.5,3238.2,0.3767477]
[1722458885651,21.28968253,3239.5,3238.3,0.06175102]
[1722458885860,21.28968253,3239.5,3238.4,2.4619]
[1722458886064,21.28968253,3239.5,3238.5,0.06174736]
[1722458886264,21.28968253,3239.5,3238.5,3.61174736]
[1722458886407,19.72772306,3239.5,3238.6,1.21615274]
[1722458886762,19.72772306,3239.5,3238.7,0.06174733]
[1722458886971,19.72772306,3239.5,3238.8,0.55]
[1722458887121,19.72772306,3239.5,3238.9,0.06174032]
[1722458887759,7.47,3239.9,3238.9,0.06174032]
[1722458887923,0.04866151,3239.8,3238.9,0.06174032]
[1722458889101,0.04866151,3239.8,3238.9,0.06174034]
[1722458890329,7.47,3239.9,3239.0,2.3216]
[1722458890511,7.47,3239.9,3239.1,0.06173916]
[1722458891342,19.72772306,3240.9,3239.6,2.3216]
[1722458891510,3.08522,3241.3,3239.7,1.30256691]
[1722458891705,3.08503,3241.5,3239.8,0.06172391]
[1722458891911,3.08497,3241.6,3239.9,3.14821388]
[1722458892112,32.60537306,3241.7,3240.0,3.55]
[1722458892113,3.08519,3241.3,3240.0,3.55]
[1722458892372,3.08519,3241.3,3240.1,0.4228919]